bitfinex/quotes_BTCUSD_20250920
["timestamp","ask_amount","ask_price","bid_price","bid_amount"]
[1758388950005,1.43438271,116110.0,116100.0,0.002]
[1758388951990,1.43434271,116110.0,116100.0,0.002]
[1758388970613,1.05988673,116110.0,116100.0,0.002]
[1758388970864,1.43434271,116110.0,116100.0,0.002]
[1758388973156,1.45046208,116110.0,116100.0,0.002]
[1758388974666,1.44601012,116090.0,116080.0,0.61587628]
[1758388974855,1.80587979,116090.0,116080.0,0.61797628]
[1758388975055,1.83295098,116090.0,116080.0,0.61797628]
[1758388975317,1.85885379,116090.0,116080.0,0.61797628]
[1758388975518,1.58425379,116090.0,116080.0,0.61797628]
[1758388975724,1.85881379,116090.0,116080.0,0.61797628]
[1758388975942,1.85891379,116090.0,116080.0,0.61797628]
[1758388976149,1.85891379,116090.0,116080.0,0.61997628]
[1758388976769,1.85891379,116090.0,116080.0,0.63808628]
[1758388977313,1.85991379,116090.0,116080.0,0.64308628]
[1758388977712,1.85891379,116090.0,116080.0,0.63608628]
[1758388978147,1.85891379,116090.0,116080.0,0.63808628]
[1758388979377,1.86391379,116090.0,116080.0,0.63808628]
[1758388982469,1.86391379,116090.0,116080.0,0.2455203]
[1758388982680,1.88993379,116090.0,116080.0,0.61997628]
[1758388983514,1.88993379,116090.0,116080.0,0.2455203]
[1758388983754,1.88993379,116090.0,116080.0,0.61997628]
[1758388989184,1.88993379,116090.0,116080.0,0.2455203]
[1758388989409,1.88993379,116090.0,116080.0,0.61997628]
[1758388989624,1.88993379,116090.0,116080.0,0.61683628]
[1758388991088,1.89315379,116090.0,116080.0,0.2402803]
[1758388991326,1.89315379,116090.0,116080.0,0.61473628]
[1758388991703,1.89315379,116090.0,116080.0,0.61683628]
[1758388992528,1.61859379,116090.0,116080.0,0.61683628]
[1758388992771,1.88969379,116090.0,116080.0,0.61683628]
[1758388994076,1.61537379,116090.0,116080.0,0.61683628]
[1758388994290,1.88969379,116090.0,116080.0,0.61683628]
[1758388996598,1.88965379,116090.0,116080.0,0.61683628]
[1758388998553,1.86359379,116090.0,116080.0,0.61999628]
[1758388998962,1.86359379,116090.0,116080.0,0.63810628]
[1758388999175,1.2622826,116090.0,116080.0,0.81040124]
[1758388999385,1.2622826,116090.0,116080.0,0.63810628]
[1758388999589,1.5365226,116090.0,116080.0,0.81040124]
[1758389002592,1.5365226,116090.0,116080.0,0.63810628]
[1758389006964,1.2622826,116090.0,116080.0,0.63810628]
[1758389007177,1.5364426,116090.0,116080.0,0.63810628]
[1758389007999,1.5364426,116090.0,116080.0,0.63310628]
[1758389009523,1.5364426,116090.0,116080.0,0.63320628]
[1758389009722,1.5364426,116090.0,116080.0,0.61509628]
[1758389010626,1.5385526,116090.0,116080.0,0.61509628]
[1758389010847,1.5621326,116090.0,116080.0,0.61509628]
[1758389011973,1.5621326,116090.0,116080.0,0.98947278]
[1758389017515,1.5621326,116090.0,116080.0,0.98631278]
[1758389026188,1.5652026,116090.0,116080.0,0.98421278]
[1758389026385,1.59227379,116090.0,116080.0,0.98421278]
[1758389035149,1.59227379,116090.0,116080.0,0.2353803]
[1758389035393,1.59227379,116090.0,116080.0,0.98421278]
[1758389036765,1.59227379,116090.0,116080.0,0.98635278]
[1758389038377,1.59227379,116090.0,116080.0,0.2375203]
[1758389038593,1.59227379,116090.0,116080.0,0.98635278]
[1758389042437,1.58920379,116090.0,116080.0,0.98635278]
[1758389043822,1.59240379,116090.0,116080.0,0.2375203]
[1758389044070,1.59240379,116090.0,116080.0,0.98635278]
[1758389049541,1.5653326,116090.0,116080.0,0.98635278]
[1758389051492,1.5653326,116090.0,116080.0,0.2375203]
[1758389051726,1.5653326,116090.0,116080.0,0.98635278]
[1758389058453,1.5621326,116090.0,116080.0,0.2375203]
[1758389058655,1.5621326,116090.0,116080.0,0.98930278]
[1758389059007,1.2879726,116090.0,116080.0,0.98930278]
[1758389059212,1.5613326,116090.0,116080.0,0.98930278]
[1758389070348,1.5611726,116090.0,116080.0,0.98930278]
[1758389070917,1.5354826,116090.0,116080.0,0.98930278]
[1758389071518,1.5581626,116090.0,116080.0,0.98930278]
[1758389073933,1.5581626,116090.0,116080.0,0.61488879]
[1758389074375,1.5601826,116090.0,116080.0,0.61488879]
[1758389080115,1.2869826,116090.0,116080.0,0.61488879]
[1758389080324,1.5600626,116090.0,116080.0,0.61488879]
[1758389080930,1.5600626,116090.0,116080.0,0.78718375]
[1758389093157,1.5600626,116090.0,116080.0,0.78423375]
[1758389098738,1.5632826,116090.0,116080.0,0.2353803]
[1758389098946,1.59035379,116090.0,116080.0,0.60979879]
[1758389106439,1.59035379,116090.0,116080.0,0.2353803]
[1758389106649,1.59035379,116090.0,116080.0,0.60979879]
[1758389109416,1.59035379,116090.0,116080.0,0.2353803]
[1758389114137,1.5632826,116090.0,116080.0,0.2353803]
[1758389120900,1.2902026,116090.0,116080.0,0.2373903]
[1758389121047,1.5595026,116090.0,116080.0,0.2373903]
[1758389121454,1.5626326,116090.0,116080.0,0.2373903]
[1758389138964,1.5626326,116090.0,116080.0,0.6118639]
[1758389140127,1.5623926,116090.0,116080.0,0.6118639]
[1758389146885,1.5591826,116090.0,116080.0,0.78415886]
[1758389147041,1.5591826,116090.0,116080.0,0.6118639]
[1758389148044,1.5591826,116090.0,116080.0,0.6148039]
[1758389148266,1.5622226,116090.0,116080.0,0.2353803]
[1758389148480,1.5622226,116090.0,116080.0,0.6098539]
[1758389150628,1.5622226,116090.0,116080.0,0.2353803]
[1758389154221,1.5622226,116090.0,116080.0,0.6098539]
[1758389158081,1.5622226,116090.0,116080.0,0.2353803]
[1758389158286,1.5622226,116090.0,116080.0,0.6098539]
[1758389160876,1.2900226,116090.0,116080.0,0.78427886]
[1758389161089,1.5590226,116090.0,116080.0,0.78427886]
[1758389161302,1.5590226,116090.0,116080.0,0.78738886]
[1758389161996,1.2622826,116090.0,116080.0,0.78738886]
[1758389162212,1.5343226,116090.0,116080.0,0.78738886]
[1758389163580,1.5591026,116090.0,116080.0,0.78738886]
[1758389166283,1.5342426,116090.0,116080.0,0.80549886]
[1758389166706,1.5342426,116090.0,116080.0,0.78738886]
[1758389167134,1.5590226,116090.0,116080.0,0.78738886]
[1758389168244,1.5590226,116090.0,116080.0,0.6150939]
[1758389168473,1.5590226,116090.0,116080.0,0.78738886]
[1758389170332,1.5611726,116090.0,116080.0,0.78738886]
[1758389170925,1.5611726,116090.0,116080.0,0.78427886]
[1758389174253,1.5641526,116090.0,116080.0,0.78427886]
[1758389177382,1.5641526,116090.0,116080.0,0.40980526]
[1758389177623,1.5641526,116090.0,116080.0,0.78427886]
[1758389186469,1.5641526,116090.0,116080.0,0.55099856]
[1758389187153,1.5611726,116090.0,116080.0,0.55099856]
[1758389188537,1.5611726,116090.0,116080.0,0.17958496]
[1758389188745,1.5611726,116090.0,116080.0,0.55405856]
[1758389190498,1.5611726,116090.0,116080.0,0.17958496]
[1758389190695,1.5611726,116090.0,116080.0,0.55099856]
[1758389192740,1.5611726,116090.0,116080.0,0.17652496]
[1758389192948,1.5611726,116090.0,116080.0,0.55099856]
[1758389195106,1.5641826,116090.0,116080.0,0.55099856]
[1758389195520,1.5641826,116090.0,116080.0,0.78427886]
[1758389195966,1.5641826,116090.0,116080.0,0.40980526]
[1758389196193,1.5641826,116090.0,116080.0,0.40767526]
[1758389210769,1.5641826,116090.0,116080.0,0.40980526]
[1758389227679,1.5641826,116090.0,116080.0,0.40767526]
[1758389227680,1.5622226,116090.0,116080.0,0.40767526]
[1758389228854,1.5622226,116090.0,116080.0,0.2353803]
[1758389229024,1.5622226,116090.0,116080.0,0.40767526]
[1758389229684,1.5622226,116090.0,116080.0,0.2353803]
[1758389230363,1.5622226,116090.0,116080.0,0.40767526]
[1758389234928,1.5622226,116090.0,116080.0,0.2353803]
[1758389235995,1.5622226,116090.0,116080.0,0.40767526]
[1758389241120,1.5622226,116090.0,116080.0,0.2353803]
[1758389243970,1.9637388,116090.0,116080.0,0.2353803]
[1758389244235,2.2637388,116090.0,116080.0,0.2353803]
[1758389252208,2.6037388,116090.0,116080.0,0.2353803]
[1758389254768,2.6037388,116090.0,116080.0,0.0021]
[1758389254926,2.6028188,116090.0,116080.0,0.0021]
[1758389255883,2.60292987,116090.0,116080.0,0.0021]
[1758389264975,1.95732531,116090.0,116080.0,0.0021]
[1758389265223,2.60292987,116090.0,116080.0,0.0021]
[1758389266863,2.33188987,116090.0,116080.0,0.0021]
[1758389267067,2.60292987,116090.0,116080.0,0.0021]
[1758389272865,2.22836531,116090.0,116080.0,0.0021]
[1758389273081,2.60292987,116090.0,116080.0,0.0021]
[1758389273978,2.60292987,116090.0,116080.0,0.002]
[1758389286393,2.22832531,116090.0,116080.0,0.002]
[1758389286616,2.60288987,116090.0,116080.0,0.002]
[1758389289937,2.61094249,116090.0,116080.0,0.002]
[1758389296305,2.61090249,116090.0,116080.0,0.002]
[1758389297934,2.33994249,116090.0,116080.0,0.002]
[1758389298127,2.61090249,116090.0,116080.0,0.002]
[1758389299422,2.23633793,116090.0,116080.0,0.002]
[1758389299588,2.61090249,116090.0,116080.0,0.002]
[1758389300199,2.31090249,116090.0,116080.0,0.002]
[1758389306204,2.61090249,116090.0,116080.0,0.002]
[1758389309439,2.23633793,116090.0,116080.0,0.002]
[1758389309656,2.61090249,116090.0,116080.0,0.002]
[1758389315912,2.61090811,116090.0,116080.0,0.002]
[1758389316545,2.70406811,116090.0,116080.0,0.002]
[1758389320394,2.45517627,116090.0,116080.0,0.002]
[1758389320871,2.72609627,116090.0,116080.0,0.002]
[1758389322279,2.7422189,116090.0,116080.0,0.002]
[1758389323754,2.36764872,116090.0,116080.0,0.002]
[1758389323966,2.7422189,116090.0,116080.0,0.002]
[1758389324419,2.72609627,116090.0,116080.0,0.002]
[1758389325288,2.74221804,116090.0,116080.0,0.002]
[1758389332191,2.36760786,116090.0,116080.0,0.002]
[1758389332389,2.74217804,116090.0,116080.0,0.002]
[1758389337487,2.47129804,116090.0,116080.0,0.002]
[1758389337689,2.74217804,116090.0,116080.0,0.002]
[1758389347380,2.74218411,116090.0,116080.0,0.002]
[1758389347566,2.36761393,116090.0,116080.0,0.002]
[1758389347770,2.74218411,116090.0,116080.0,0.002]
[1758389350078,2.47130411,116090.0,116080.0,0.002]
[1758389350299,2.74214411,116090.0,116080.0,0.002]
[1758389351946,2.47130411,116090.0,116080.0,0.002]
[1758389352156,2.74214411,116090.0,116080.0,0.002]
[1758389352574,2.36757393,116090.0,116080.0,0.00409]
[1758389353010,2.74214411,116090.0,116080.0,0.00409]
[1758389357117,2.74214576,116090.0,116080.0,0.00409]
[1758389360970,2.74214576,116090.0,116080.0,0.002]
[1758389377765,2.74216762,116090.0,116080.0,0.002]
[1758389383595,2.72604585,116090.0,116080.0,0.002]
[1758389384528,2.74216463,116090.0,116080.0,0.002]
[1758389386335,2.36757259,116090.0,116080.0,0.002]
[1758389386540,2.74216463,116090.0,116080.0,0.002]
[1758389392158,2.74216504,116090.0,116080.0,0.002]
[1758389403476,2.74216428,116090.0,116080.0,0.002]
[1758389409297,2.7341047,116090.0,116080.0,0.002]
[1758389409499,2.74216431,116090.0,116080.0,0.002]
[1758389410365,2.36757227,116090.0,116080.0,0.002]
[1758389410577,2.74216431,116090.0,116080.0,0.002]
[1758389428340,2.36757227,116090.0,116080.0,0.002]
[1758389428544,2.74216431,116090.0,116080.0,0.002]
[1758389428992,2.47132431,116090.0,116080.0,0.002]
[1758389429199,2.74188431,116090.0,116080.0,0.002]
[1758389433337,2.74188666,116090.0,116080.0,0.002]
[1758389434351,2.36729462,116090.0,116080.0,0.002]
[1758389434584,2.74188666,116090.0,116080.0,0.002]
[1758389437898,2.7418854,116090.0,116080.0,0.002]
[1758389438686,2.4713254,116090.0,116080.0,0.002]
[1758389438974,2.7418454,116090.0,116080.0,0.002]
[1758389439416,2.74184491,116090.0,116080.0,0.002]
[1758389440351,2.74184491,116090.0,116080.0,0.00174025]
[1758389451517,2.71382491,116090.0,116080.0,0.00683025]
[1758389451935,2.73841491,116090.0,116080.0,0.00683025]
[1758389452389,2.73841491,116090.0,116080.0,0.00387025]
[1758389452848,2.36382413,116090.0,116080.0,0.00387025]
[1758389453044,2.73841491,116090.0,116080.0,0.00387025]
[1758389456686,2.74140491,116090.0,116080.0,0.00387025]
[1758389456925,2.74140491,116090.0,116080.0,0.00174025]
[1758389459407,2.74140867,116090.0,116080.0,0.00174025]
[1758389459821,2.74140867,116090.0,116080.0,0.38157103]
[1758389459822,2.04668973,116090.0,116080.0,0.38157103]
[1758389460022,2.03056678,116090.0,116080.0,0.39968103]
[1758389460223,2.30100678,116090.0,116080.0,0.39968103]
[1758389460650,1.2622826,116090.0,116080.0,0.57197599]
[1758389460895,1.09000248,116090.0,116080.0,0.57197599]
[1758389461087,1.24927,116090.0,116080.0,0.57197599]
[1758389461785,1.24927,116090.0,116080.0,0.59797748]
[1758389463428,1.42155012,116090.0,116080.0,0.59797748]
[1758389464047,1.42155012,116090.0,116080.0,0.60657671]
[1758389464722,1.24927,116090.0,116080.0,0.60657671]
[1758389465096,1.42155012,116090.0,116080.0,0.60657671]
[1758389465481,1.42155012,116090.0,116080.0,0.59797748]
[1758389465683,1.24927,116090.0,116080.0,0.59797748]
[1758389465969,1.24923,116090.0,116080.0,0.59797748]
[1758389468233,1.24923,116090.0,116080.0,0.60635322]
[1758389472877,1.24923,116090.0,116080.0,0.83963352]
[1758389477454,1.24923,116090.0,116080.0,0.81373203]
[1758389478317,1.42151012,116090.0,116080.0,0.43914125]
[1758389478555,1.44870174,116090.0,116080.0,0.80535629]
[1758389478898,1.44870174,116090.0,116080.0,0.78724629]
[1758389480146,1.44870174,116090.0,116080.0,0.7959217]
[1758389480347,1.44870174,116090.0,116080.0,0.78724629]
[1758389480900,1.27642162,116090.0,116080.0,0.78724629]
[1758389481331,1.44870174,116090.0,116080.0,0.78724629]
[1758389482137,1.27642162,116090.0,116080.0,0.78724629]
[1758389483500,1.47186174,116090.0,116080.0,0.42101673]
[1758389483759,1.47186174,116090.0,116080.0,0.41265551]
[1758389483971,1.47186174,116090.0,116080.0,0.78724629]
[1758389486150,1.47393174,116090.0,116080.0,0.78724629]
[1758389487785,1.47393174,116090.0,116080.0,0.79567959]
[1758389489883,1.30165162,116090.0,116080.0,0.79567959]
[1758389490702,1.47393174,116090.0,116080.0,0.79567959]
[1758389493126,1.47393174,116090.0,116080.0,1.06591959]
[1758389494689,1.47393174,116090.0,116080.0,0.79567959]
[1758389494890,1.47393174,116090.0,116080.0,1.06591959]
[1758389499742,1.47393174,116090.0,116080.0,1.44009427]
[1758389500831,1.30165162,116090.0,116080.0,1.44009427]
[1758389501433,1.47393174,116090.0,116080.0,1.44009427]
[1758389505648,1.20353174,116090.0,116080.0,1.44009427]
[1758389505910,1.47373174,116090.0,116080.0,1.44009427]
[1758389506932,1.47373174,116090.0,116080.0,0.69132881]
[1758389507197,1.47373174,116090.0,116080.0,1.44009427]
[1758389507390,1.47373174,116090.0,116080.0,1.16142097]
[1758389507527,1.47373174,116090.0,116080.0,1.42842097]
[1758389507859,1.47373174,116090.0,116080.0,1.43679425]
[1758389515251,1.47373174,116090.0,116080.0,1.42838097]
[1758389516270,1.47373174,116090.0,116080.0,1.43707228]
[1758389517690,1.47373174,116090.0,116080.0,0.40945551]
[1758389517906,1.47697174,116090.0,116080.0,1.42838097]
[1758389519595,1.47697174,116090.0,116080.0,1.15822097]
[1758389523418,1.47373174,116090.0,116080.0,1.15822097]
[1758389523881,1.47373174,116090.0,116080.0,1.42834097]
[1758389528457,1.47373174,116090.0,116080.0,0.98592601]
[1758389528644,1.47373174,116090.0,116080.0,1.42830097]
[1758389532251,1.47373174,116090.0,116080.0,1.15822097]
[1758389532476,1.47373174,116090.0,116080.0,1.42830097]
[1758389534464,1.47373174,116090.0,116080.0,1.43130097]
[1758389536718,1.44654012,116090.0,116080.0,1.43130097]
[1758389536934,1.17634012,116090.0,116080.0,1.43130097]
[1758389537141,1.44638012,116090.0,116080.0,1.43130097]
[1758389537360,1.44638012,116090.0,116080.0,1.45720159]
[1758389538924,1.44638012,116090.0,116080.0,0.70843613]
[1758389539147,1.44638012,116090.0,116080.0,1.45720159]
[1758389539794,1.44638012,116090.0,116080.0,1.08281886]
[1758389547252,1.44638012,116090.0,116080.0,0.70843613]
[1758389547457,1.44638012,116090.0,116080.0,1.08281886]
[1758389548665,1.2741,116090.0,116080.0,1.08281886]
[1758389548885,1.27406,116090.0,116080.0,1.08281886]
[1758389554697,1.27406,116090.0,116080.0,0.70843613]
[1758389554937,1.27406,116090.0,116080.0,1.08281886]
[1758389561977,1.27406,116090.0,116080.0,1.08285378]
[1758389565352,1.27406,116090.0,116080.0,0.70543613]
[1758389565571,1.44634012,116090.0,116080.0,1.07985378]
[1758389566199,1.27406,116090.0,116080.0,1.07985378]
[1758389578510,1.27406,116090.0,116080.0,1.08290378]
[1758389583386,1.00406,116090.0,116080.0,1.08290378]
[1758389583739,1.2739,116090.0,116080.0,1.08290378]
[1758389586112,1.2739,116090.0,116080.0,0.70848613]
[1758389586364,1.2739,116090.0,116080.0,0.70543613]
[1758389586613,1.2739,116090.0,116080.0,1.07985378]
[1758389587021,1.27691,116090.0,116080.0,1.07985378]
[1758389588037,1.27691,116090.0,116080.0,0.70543613]
[1758389588238,1.27691,116090.0,116080.0,1.07985378]
[1758389591223,1.27691,116090.0,116080.0,1.07957378]
[1758389592848,1.47641902,116090.0,116080.0,0.26102117]
[1758389593057,1.47641902,116090.0,116080.0,0.23512055]
[1758389593299,1.50232066,116090.0,116080.0,0.23512055]
[1758389594387,1.50232066,116090.0,116080.0,0.40741551]
[1758389602462,1.51082801,116090.0,116080.0,0.40741551]
[1758389602642,1.50232066,116090.0,116080.0,0.40741551]
[1758389603332,1.50232066,116090.0,116080.0,0.23512055]
[1758389606484,1.50232066,116090.0,116080.0,0.40741551]
[1758389610895,1.50232066,116090.0,116080.0,0.40567526]
[1758389611116,1.50232066,116090.0,116080.0,0.2333803]
[1758389611540,1.50232066,116090.0,116080.0,0.2363803]
[1758389613529,1.50232066,116090.0,116080.0,0.40867526]
[1758389614242,1.50232066,116090.0,116080.0,0.2363803]
[1758389623490,1.49732066,116090.0,116080.0,0.2363803]
[1758389623736,1.49732066,116090.0,116080.0,0.40867526]
[1758389624755,1.49732066,116090.0,116080.0,0.2363803]
[1758389624962,1.50132066,116090.0,116080.0,0.2363803]
[1758389625762,1.50132066,116090.0,116080.0,0.61085573]
[1758389626610,1.50132066,116090.0,116080.0,0.78315069]
[1758389627036,1.50132066,116090.0,116080.0,0.78524069]
[1758389641656,1.50132066,116090.0,116080.0,0.61294573]
[1758389641879,1.50132066,116090.0,116080.0,0.78524069]
[1758389649047,1.50132066,116090.0,116080.0,0.61294573]
[1758389649752,1.50132066,116090.0,116080.0,0.78524069]
[1758389651612,1.47541902,116090.0,116080.0,0.78524069]
[1758389651748,1.47541902,116090.0,116080.0,0.61294573]
[1758389652187,1.47541902,116090.0,116080.0,0.78524069]
[1758389652399,1.47541902,116090.0,116080.0,0.61294573]
[1758389652989,1.47541902,116090.0,116080.0,0.78524069]
[1758389653418,1.47541902,116090.0,116080.0,0.61294573]
[1758389654267,1.47541902,116090.0,116080.0,0.2384703]
[1758389654618,1.47541902,116090.0,116080.0,0.61294573]
[1758389654819,1.50132067,116090.0,116080.0,0.61294573]
[1758389657734,1.50132067,116090.0,116080.0,0.63884738]
[1758389657965,1.50132067,116090.0,116080.0,0.26437195]
[1758389658123,1.50132067,116090.0,116080.0,0.2384703]
[1758389660346,1.50132067,116090.0,116080.0,0.98742116]
[1758389661011,1.50132067,116090.0,116080.0,0.2384703]
[1758389661232,1.50132067,116090.0,116080.0,0.98742116]
[1758389667483,1.49831067,116090.0,116080.0,0.98742116]
[1758389672249,1.49831067,116090.0,116080.0,0.98737127]
[1758389673614,1.50156067,116090.0,116080.0,0.98737127]
[1758389676792,1.49831067,116090.0,116080.0,0.98737127]
[1758389678013,1.49783067,116090.0,116080.0,0.98737127]
[1758389683022,1.49779067,116090.0,116080.0,1.15966623]
[1758389683202,1.49779067,116090.0,116080.0,0.98737127]
[1758389685949,1.49779067,116090.0,116080.0,0.61284869]
[1758389686297,1.49779067,116090.0,116080.0,0.23842041]
[1758389686498,1.49779067,116090.0,116080.0,0.61284869]
[1758389689610,1.50104067,116090.0,116080.0,0.61284869]
[1758389702872,1.47788067,116090.0,116080.0,0.61284869]
[1758389703086,1.50124067,116090.0,116080.0,0.61075869]
[1758389705176,1.50116067,116090.0,116080.0,0.61075869]
[1758389714217,1.50116067,116090.0,116080.0,0.61273869]
[1758389717503,1.50116067,116090.0,116080.0,0.23831041]
[1758389717700,1.50116067,116090.0,116080.0,0.61273869]
[1758389718999,1.50116067,116090.0,116080.0,0.61075869]
[1758389720556,1.50116067,116090.0,116080.0,0.61273869]
[1758389723857,1.20469177,116090.0,116080.0,0.61273869]
[1758389724034,1.47385177,116090.0,116080.0,0.61273869]
[1758389724235,1.47060177,116090.0,116080.0,0.78503365]
[1758389724442,1.47060177,116090.0,116080.0,0.61273869]
[1758389725217,1.47060177,116090.0,116080.0,0.78503365]
[1758389725427,1.47060177,116090.0,116080.0,0.78813365]
[1758389726688,1.47060177,116090.0,116080.0,0.61583869]
[1758389732276,1.47060177,116090.0,116080.0,0.61273869]
[1758389735709,1.47355177,116090.0,116080.0,0.61273869]
[1758389737114,1.47355177,116090.0,116080.0,0.61075869]
[1758389740661,1.49822708,116090.0,116080.0,0.61075869]
[1758389745898,1.49822708,116090.0,116080.0,0.98521211]
[1758389746940,1.49822708,116090.0,116080.0,0.98727211]
[1758389747317,1.49527708,116090.0,116080.0,0.98727211]
[1758389753018,1.49527708,116090.0,116080.0,0.99036211]
[1758389753582,1.49527708,116090.0,116080.0,0.98727211]
[1758389764042,1.22611708,116090.0,116080.0,1.15956707]
[1758389764259,1.22404708,116090.0,116080.0,1.16255707]
[1758389764465,1.49304708,116090.0,116080.0,1.16255707]
[1758389764890,1.49304708,116090.0,116080.0,1.43155707]
[1758389765306,1.49304708,116090.0,116080.0,1.16255707]
[1758389765523,1.46968708,116090.0,116080.0,1.43155707]
[1758389765743,1.44501177,116090.0,116080.0,1.44966707]
[1758389769026,1.44501177,116090.0,116080.0,1.43155707]
[1758389769267,1.44501177,116090.0,116080.0,1.44966707]
[1758389769951,1.44501177,116090.0,116080.0,1.43155707]
[1758389773908,1.46853177,116090.0,116080.0,1.43155707]
[1758389775950,1.44501177,116090.0,116080.0,1.43155707]
[1758389776812,1.46853177,116090.0,116080.0,1.43155707]
[1758389779164,1.47056177,116090.0,116080.0,0.68267537]
[1758389779362,1.47056177,116090.0,116080.0,1.43155707]
[1758389786529,1.47056177,116090.0,116080.0,1.42856707]
[1758389800162,1.47362177,116090.0,116080.0,1.25627211]
[1758389800357,1.49829708,116090.0,116080.0,1.25627211]
[1758389800940,1.49829708,116090.0,116080.0,1.42856707]
[1758389802632,1.49829708,116090.0,116080.0,1.25627211]
[1758389803095,1.49829708,116090.0,116080.0,1.42856707]
[1758389804820,1.49829708,116090.0,116080.0,1.25627211]
[1758389805043,1.49523708,116090.0,116080.0,1.25627211]
[1758389805453,1.49523708,116090.0,116080.0,1.42856707]
[1758389807807,1.49523708,116090.0,116080.0,1.05409672]
[1758389808624,1.49523708,116090.0,116080.0,0.61280176]
[1758389808871,1.49523708,116090.0,116080.0,0.88164176]
[1758389810265,1.49523708,116090.0,116080.0,0.50723041]
[1758389810473,1.49523708,116090.0,116080.0,0.88164176]
[1758389814011,1.49523708,116090.0,116080.0,0.61280176]
[1758389815222,1.49523708,116090.0,116080.0,0.78509672]
[1758389815655,1.49523708,116090.0,116080.0,0.61280176]
[1758389817131,1.49821708,116090.0,116080.0,0.61280176]
[1758389817549,1.49523708,116090.0,116080.0,0.61280176]
[1758389822111,1.49503708,116090.0,116080.0,0.61280176]
[1758389822737,1.49503708,116090.0,116080.0,0.78509672]
[1758389824669,1.49503708,116090.0,116080.0,0.78802672]
[1758389833895,1.49503708,116090.0,116080.0,0.78509672]
[1758389838782,1.47036177,116090.0,116080.0,0.78509672]
[1758389840825,1.47036177,116090.0,116080.0,0.41068537]
[1758389841062,1.47036177,116090.0,116080.0,0.78509672]
[1758389844834,1.00373165,116090.0,116080.0,0.78802672]
[1758389845066,1.44473177,116090.0,116080.0,0.78802672]
[1758389845296,1.47095177,116090.0,116080.0,0.78802672]
[1758389848112,1.47095177,116090.0,116080.0,0.41068537]
[1758389848372,1.47095177,116090.0,116080.0,0.78509672]
[1758389850451,1.49372786,116090.0,116080.0,0.78509672]
[1758389852764,1.00373165,116090.0,116080.0,0.78808672]
[1758389852994,0.97783,116090.0,116080.0,0.80619672]
[1758389853205,0.97783,116090.0,116080.0,0.83209718]
[1758389853405,0.97773,116090.0,116080.0,0.83209718]
[1758389861581,0.97773,116090.0,116080.0,0.45768583]
[1758389861789,0.97773,116090.0,116080.0,0.83209718]
[1758389862709,0.97773,116090.0,116080.0,0.81398718]
[1758389866758,1.00221,116090.0,116080.0,0.81398718]
[1758389869839,1.00221,116090.0,116080.0,1.56250544]
[1758389871135,1.00419,116090.0,116080.0,1.56250544]
[1758389871336,1.00419,116090.0,116080.0,1.82815544]
[1758389871588,1.00419,116090.0,116080.0,1.45384557]
[1758389872234,1.00733,116090.0,116080.0,1.18520557]
[1758389872516,1.00733,116090.0,116080.0,1.45384557]
[1758389875645,1.00733,116090.0,116080.0,0.43452583]
[1758389875646,1.17961012,116090.0,116080.0,0.43452583]
[1758389875881,1.57672387,116090.0,116080.0,0.43452583]
[1758389876081,1.202414,116090.0,116080.0,0.40862537]
[1758389876301,1.60262498,116090.0,116080.0,0.40862537]
[1758389876500,1.60262498,116090.0,116080.0,0.23633041]
[1758389877136,1.22831511,116090.0,116080.0,0.23633041]
[1758389877339,1.60262498,116090.0,116080.0,0.23633041]
[1758389878793,1.60262498,116090.0,116080.0,0.40862537]
[1758389880090,1.49859511,116090.0,116080.0,0.40862537]
[1758389882787,1.49859511,116090.0,116080.0,0.78293524]
[1758389900649,1.49859511,116090.0,116080.0,0.78288402]
[1758389900869,1.49869511,116090.0,116080.0,0.78288402]
[1758389902070,1.49869511,116090.0,116080.0,0.78298402]
[1758389909510,1.49869511,116090.0,116080.0,0.78500402]
[1758389909741,1.02821111,116090.0,116080.0,0.78809402]
[1758389909979,1.27341111,116090.0,116080.0,1.16240389]
[1758389913843,1.00373111,116090.0,116080.0,1.16240389]
[1758389915868,1.27345111,116090.0,116080.0,1.16240389]
[1758389916944,1.29706111,116090.0,116080.0,1.16240389]
[1758389917090,1.02734111,116090.0,116080.0,1.16240389]
[1758389918975,1.29698111,116090.0,116080.0,1.16240389]
[1758389919402,1.29895111,116090.0,116080.0,1.16240389]
[1758389923569,1.29895111,116090.0,116080.0,1.43192389]
[1758389923923,1.29895111,116090.0,116080.0,1.05761402]
[1758389927284,1.29895111,116090.0,116080.0,0.68330415]
[1758389927486,1.29895111,116090.0,116080.0,1.05761402]
[1758389929283,1.02931111,116090.0,116080.0,1.05761402]
[1758389929485,1.29875111,116090.0,116080.0,1.05761402]
[1758389929812,1.29875111,116090.0,116080.0,1.05772025]
[1758389930794,1.02931111,116090.0,116080.0,1.05772025]
[1758389930994,1.29875111,116090.0,116080.0,1.05772025]
[1758389934671,1.29875111,116090.0,116080.0,0.68330415]
[1758389934918,1.29875111,116090.0,116080.0,1.05772025]
[1758389938887,1.29867111,116090.0,116080.0,1.05772025]
[1758389941510,1.00373111,116090.0,116080.0,1.05772025]
[1758389941720,1.27305111,116090.0,116080.0,1.07583025]
[1758389942644,1.00373111,116090.0,116080.0,1.05772025]
[1758389942908,1.00373111,116090.0,116080.0,1.07583025]
[1758389944652,1.00373111,116090.0,116080.0,1.05772025]
[1758389948375,1.02759111,116090.0,116080.0,1.05772025]
[1758389954862,1.02969111,116090.0,116080.0,0.68330415]
[1758389955116,1.02969111,116090.0,116080.0,1.05772025]
[1758389955906,1.00379,116090.0,116080.0,1.05772025]
[1758389956120,1.27287,116090.0,116080.0,1.05772025]
[1758389958080,1.00379,116090.0,116080.0,1.05772025]
[1758389958748,1.0296922,116090.0,116080.0,1.05772025]
[1758389959083,1.2987722,116090.0,116080.0,0.78820025]
[1758389959300,1.2987722,116090.0,116080.0,0.78511025]
[1758389959510,1.2987722,116090.0,116080.0,1.05415025]
[1758389963198,1.3017422,116090.0,116080.0,1.05415025]
[1758389966933,1.2987722,116090.0,116080.0,1.05415025]
[1758389967342,1.0296922,116090.0,116080.0,1.05415025]
[1758389982387,1.0296922,116090.0,116080.0,0.67973415]
[1758389982597,1.0296922,116090.0,116080.0,1.05415025]
[1758389985797,1.47384232,116090.0,116080.0,0.67957415]
[1758389986011,1.47498232,116090.0,116080.0,1.05197025]
[1758389988190,1.47498232,116090.0,116080.0,0.67755415]
[1758389988462,1.47498232,116090.0,116080.0,1.05197025]
[1758389991857,1.47498232,116090.0,116080.0,1.05197706]
[1758389996586,1.47498232,116090.0,116080.0,0.67755415]
[1758389996715,1.47498232,116090.0,116080.0,1.05197706]
[1758389998849,1.20610232,116090.0,116080.0,1.05197706]
[1758389999032,1.47498232,116090.0,116080.0,1.05197706]
[1758389999218,1.47494232,116090.0,116080.0,1.05197706]
[1758389999426,1.20610232,116090.0,116080.0,1.05197706]
[1758389999628,1.47494232,116090.0,116080.0,1.05197706]
[1758390000056,1.20610232,116090.0,116080.0,1.05197706]